Cogmind - Beta 15 @@@ ROGUE MODE // 2025.06.05 @ 05:24:38 Player: Sen Result: Destroyed by S-27 Virus with Autogun Performance ------------- Evolutions (3) 1500 Regions Visited (8) 1600 Robots Destroyed (13) 65 Value Destroyed (440) 440 Prototype IDs (3) 60 Alien Tech Used (0) 0 Bonus (-359) -359 TOTAL SCORE: 3306 Bonus ------- Pacifist 200 Friendly Fire -559 Cogmind --------- Core Integrity 0/700 Matter 88/300 Energy 98/100 System Corruption 10% Temperature Cool (0) Movement Core (50) Location -7/Lower Caves Parts ------- > --- POWER (2) -------- (None) > --- PROPULSION (5) --- (None) > --- UTILITY (4) ------ Advanced Visual Processing Unit > --- WEAPON (2) ------- (None) > --- INVENTORY (5) ---- Cooled Cesium-ion Thruster Impulse Thruster Improved Heat Sink Authchip [R/Combat] Backup Laser III Peak State ------------ > --- POWER ------------ Light Angular Momentum Engine > --- PROPULSION ------- Carbon-fiber Leg > --- UTILITY ---------- Advanced Visual Processing Unit Heart of Steel > --- WEAPON ----------- (None) > --- INVENTORY -------- Cooled Cesium-ion Thruster Impulse Thruster Authchip [R/Combat] Backup Laser III [Rating: 37] Favorites ----------- Power Light Angular Momentum Engine Engine Light Angular Momentum Engine Propulsion Flight Unit Leg Aluminum Leg Flight Unit Flight Unit Utility Advanced Visual Processing Unit Device Heart of Steel Storage Medium Storage Unit Processor Advanced Visual Processing Unit Weapon Plasma Cutter Energy Gun EM Pulse Gun Energy Cannon Cooled Particle Cannon Ballistic Gun Flak Gun Launcher Mini Grenade Launcher Special Weapon Plasma Cutter Impact Weapon Heavy Flail Special Melee Weapon Datajack Build | -11 -10 -9 -8 -7 -7 -7 -7 -7 ------- Run | Yrd Mat Mat Mat Fac Was Fac Low Low Slots Evolved 6 | . . 2 2 2 . . . . Power 1 | . . . 1 . . . . . Propulsion 3 | . . 2 . 1 . . . . Utility 2 | . . . 1 1 . . . . Weapon . | . . . . . . . . . Parts Attached 39 | 6 4 11 . 7 1 1 9 . Power 7 | 1 1 2 . 1 . . 2 . Engine 7 | 1 1 2 . 1 . . 2 . Core . | . . . . . . . . . Reactor . | . . . . . . . . . Propulsion 11 | 2 2 2 . 2 1 . 2 . Treads . | . . . . . . . . . Leg 4 | 2 . . . 1 . . 1 . Wheel . | . . . . . . . . . Hover . | . . . . . . . . . Flight 7 | . 2 2 . 1 1 . 1 . Utility 8 | 1 1 2 . 1 . . 3 . Device 4 | . . 2 . 1 . . 1 . Storage 2 | 1 1 . . . . . . . Processor 2 | . . . . . . . 2 . Hackware . | . . . . . . . . . Protection . | . . . . . . . . . Artifact . | . . . . . . . . . Weapon 13 | 2 . 5 . 3 . 1 2 . Energy Gun 5 | 2 . 2 . 1 . . . . Energy Cannon 1 | . . . . . . 1 . . Ballistic Gun 2 | . . 1 . 1 . . . . Ballistic Cannon . | . . . . . . . . . Launcher 1 | . . . . 1 . . . . Special Weapon 2 | . . 1 . . . . 1 . Impact Weapon 1 | . . . . . . . 1 . Slashing Weapon . | . . . . . . . . . Piercing Weapon . | . . . . . . . . . Special Melee Weapon 1 | . . 1 . . . . . . Unidentified Prototypes 3 | . . . . . 1 1 1 . Parts Lost 17 | . . 2 . 10 1 1 2 1 Power 2 | . . . . 1 . . . 1 Propulsion 7 | . . 1 . 5 . . 1 . Utility 3 | . . . . 1 1 1 . . Weapon 5 | . . 1 . 3 . . 1 . Highest Loss Streak 6 | . . 2 . 6 1 1 2 1 To Critical Strikes . | . . . . . . . . . Average Backups 4 | 1 2 4 4 4 4 5 4 5 Power . | . 1 1 1 . . . . . Propulsion 1 | . . . . . . 2 2 2 Utility . | . . . . 1 2 1 1 2 Weapon 1 | . 1 2 1 1 . 1 1 1 Tool/Special . | . . . . . . . . . Unused Backups 7 | . 1 2 . . 1 . . 3 Power 1 | . . 1 . . . . . . Propulsion 1 | . . . . . . . . 1 Utility 3 | . . . . . 1 . . 2 Weapon 1 | . 1 . . . . . . . Tool/Special 1 | . . 1 . . . . . . Average Slot Usage (%) 34 | . 82 85 72 50 9 3 23 27 Engine 3 | . 14 11 9 3 . . . 6 Leg 1 | . 20 . . . . . . 6 Flight 9 | . 8 40 27 16 1 . 4 . Device 5 | . . 12 18 15 4 3 4 5 Processor 4 | . . . . . . . 7 7 Energy Gun 4 | . 28 18 18 5 . . . . Special Weapon 2 | . . 1 . . . . 4 . Peak Build Rating 37 | 6 7 11 10 21 12 8 37 37 Average Rating 18 | 4 5 8 9 15 4 2 22 32 On Entrance 8 | . 6 5 9 10 7 3 2 37 Naked Turns 73 | . . . . . 28 41 4 . Heaviest Build 23 | 13 23 14 12 16 3 1 19 19 Greatest Support 20 | 20 20 16 12 18 3 3 15 15 Greatest Overweight (x) 6 | . 1 . . . . . 6 1 Average Overweight (x) . | . . . . . . . . . Largest Inventory Capacity 10 | 8 10 5 5 5 5 5 5 5 Average Capacity 5 | 6 8 5 5 5 5 5 5 5 Most Carried 5 | 3 5 5 5 5 5 5 5 5 Average Carried 4 | 1 2 4 4 4 4 5 4 5 Final Capacity 8 | 8 5 5 5 5 5 5 5 5 Final Carried 5 | 2 5 5 5 4 5 5 5 5 Class Distribution -------------------- 84% | Mutant 11% | Scavenger-Sprinter 4% | Scavenger-Mutant Dominant Class ---------------- Mutant | -10/Materials Scavenger-Sprinter | -9/Materials Scavenger-Mutant | -8/Materials Mutant | -7/Factory Mutant | -7/Waste Mutant | -7/Factory Mutant | -7/Lower Caves Mutant | -7/Lower Caves Resources | -11 -10 -9 -8 -7 -7 -7 -7 -7 ----------- Run | Yrd Mat Mat Mat Fac Was Fac Low Low Matter Collected 981 | 236 34 165 . 86 . . 460 . Remotely . | . . . . . . . . . Salvage Created 635 | . . 169 . 159 . . 307 . Parts 20 | . . 12 . 8 . . . . Haulers Intercepted . | . . . . . . . . . Recyclers Shooed . | . . . . . . . . . Parts Field Recycled . | . . . . . . . . . Retrieved Matter . | . . . . . . . . . Parts Self-Destructed . | . . . . . . . . . Prevented . | . . . . . . . . . Kills | -11 -10 -9 -8 -7 -7 -7 -7 -7 ------- Run | Yrd Mat Mat Mat Fac Was Fac Low Low Combat Hostiles Destroyed 12 | . . 5 . 7 . . . . Guns 6 | . . 5 . 1 . . . . AOE 6 | . . . . 6 . . . . Classes Destroyed 6 | . . 2 . 3 . . 1 . Worker 1 | . . . . 1 . . . . Swarmer 6 | . . 3 . 3 . . . . Grunt 2 | . . . . 2 . . . . Duelist 1 | . . . . 1 . . . . Sentry 3 | . . 2 . 1 . . . . Tinkerer 1 | . . . . . . . 1 . Best Kill Streak 4 | . . 1 . 4 . . . . Combat Bots Only 4 | . . 1 . 4 . . . . Max Kills in Single Turn 3 | . . 1 . 3 . . 1 . Gunslinging . | . . . . . . . . . Exploded 3 | . . . . 3 . . . . Melee . | . . . . . . . . . Uniques/NPCs Destroyed . | . . . . . . . . . Combat | -11 -10 -9 -8 -7 -7 -7 -7 -7 -------- Run | Yrd Mat Mat Mat Fac Was Fac Low Low Hostile Shots Fired 282 | . . 37 . 128 1 24 60 32 Missed 122 | . . 14 . 57 . 12 28 11 Hits 160 | . . 23 . 71 1 12 32 21 Melee 3 | . . . . 2 1 . . . Projectile 157 | . . 23 . 69 . 12 32 21 Critical Strikes 3 | . . 1 . . 1 . . 1 Damage Taken 1857 | . . 273 . 875 48 89 259 313 Core 817 | . . 110 . 292 48 84 87 196 Absorbed by Shields . | . . . . . . . . . Core Remaining (%) 93 | 100 100 72 100 . . . . . Volleys Fired 108 | . . 23 . 20 . . 65 . Largest 2 | . . 2 . 2 . . 1 . Hottest 150 | . . 150 . 78 . . 20 . Shots Fired 128 | . . 37 . 26 . . 65 . Gun 45 | . . 32 . 13 . . . . Cannon . | . . . . . . . . . Launcher 13 | . . . . 13 . . . . Special 70 | . . 5 . . . . 65 . Kinetic 7 | . . . . 7 . . . . Thermal 96 | . . 25 . 6 . . 65 . Explosive 13 | . . . . 13 . . . . Electromagnetic 12 | . . 12 . . . . . . Robot Hit Streak 11 | . . 6 . 7 . . 11 . Robot Miss Streak 3 | . . 3 . 3 . . 3 . Penetration Max . | . . . . . . . . . Secondary Targets . | . . . . . . . . . Shots Hit Robots 73 | . . 19 . 19 . . 35 . Core Hits 44 | . . 7 . 20 . . 17 . Critical Kills . | . . . . . . . . . Critical Parts Destroyed . | . . . . . . . . . Critical Strikes 1 | . . . . . . . 1 . Sever 1 | . . . . . . . 1 . Melee Attacks 1 | . . 1 . . . . . . Impact . | . . . . . . . . . Slashing . | . . . . . . . . . Piercing . | . . . . . . . . . Sneak Attacks 1 | . . 1 . . . . . . Combat Hostiles . | . . . . . . . . . Follow-up Attacks . | . . . . . . . . . Damage Inflicted 1724 | . . 236 . 1107 . . 381 . Guns 403 | . . 220 . 183 . . . . Cannons . | . . . . . . . . . Explosions 924 | . . . . 924 . . . . Melee . | . . . . . . . . . Ramming 16 | . . 16 . . . . . . Kinetic 101 | . . . . 101 . . . . Thermal 980 | . . 168 . 431 . . 381 . Explosive 575 | . . . . 575 . . . . Electromagnetic 52 | . . 52 . . . . . . Impact . | . . . . . . . . . Slashing . | . . . . . . . . . Piercing . | . . . . . . . . . Highest Corruption 10 | . . . . . 10 10 10 10 Average Corruption 10 | . . . . . 10 10 10 10 Corruption Purged . | . . . . . . . . . Corruption Blocked . | . . . . . . . . . Effects 68 | . . . . . 8 3 52 5 Message Errors 19 | . . . . . . 2 14 3 Matter Fused 10 | . . . . . . . 10 . Heat Flow Errors 10 | . . . . . . . 10 . Energy Discharges 9 | . . . . . 2 1 4 2 Parts Rejected 2 | . . . . . 2 . . . Data Loss (minor) 11 | . . . . . 1 . 10 . Data Loss (major) 3 | . . . . . . . 3 . Alerts 1 | . . . . . . . 1 . Misdirections 3 | . . . . . 3 . . . Overload Shots . | . . . . . . . . . Overflow Damage 130 | . . . . 109 . . 21 . Projectiles 21 | . . . . . . . 21 . Explosions 109 | . . . . 109 . . . . Melee . | . . . . . . . . . Knockbacks . | . . . . . . . . . Impact . | . . . . . . . . . Kinetic . | . . . . . . . . . Secondary . | . . . . . . . . . Self-Inflicted Damage 132 | . . 16 . 116 . . . . Shots 4 | . . . . 4 . . . . Rammed . | . . . . . . . . . Targets Rammed . | . . . . . . . . . Kicked . | . . . . . . . . . Crushed . | . . . . . . . . . Highest Temperature 264 | . . 135 . 4 . . 264 . Average Temperature 64 | . . 29 . 3 . . 106 . Received Heat Transfer 345 | . . 18 . 210 . 30 87 . Siege Activations . | . . . . . . . . . Martial Activations . | . . . . . . . . . Shielding Activations . | . . . . . . . . . Robots Disrupted . | . . . . . . . . . Combat Hostiles . | . . . . . . . . . Robots Corrupted . | . . . . . . . . . Combat Hostiles . | . . . . . . . . . Parts Fried . | . . . . . . . . . Impact Corruptions . | . . . . . . . . . Robots Melted . | . . . . . . . . . Combat Hostiles . | . . . . . . . . . Parts Melted . | . . . . . . . . . Heat Transferred 2224 | . . 457 . 472 . . 1295 . Parts Sabotaged . | . . . . . . . . . Parts Stolen . | . . . . . . . . . Parts Stripped . | . . . . . . . . . Power Chain Reactions . | . . . . . . . . . Alert | -11 -10 -9 -8 -7 -7 -7 -7 -7 ------- Run | Yrd Mat Mat Mat Fac Was Fac Low Low Maximum Alert Level . | . . . . . . . . . Low Security (%) 100 | 100 100 100 100 100 100 100 . . Level 1 . | . . . . . . . . . Level 2 . | . . . . . . . . . Level 3 . | . . . . . . . . . Level 4 . | . . . . . . . . . Level 5 . | . . . . . . . . . High Security . | . . . . . . . . . Max Security . | . . . . . . . . . Peak Influence 182 | . 17 61 11 182 53 . . . Initial 53 | . . 2 11 . 53 . . . Average 21 | . 1 29 5 47 23 . . . Influence Increases 618 | . 17 179 . 312 . . 110 . Destroy 0b10 Robot/C 240 | . . 100 . 140 . . . . Destroy 0b10 Robot/NC 10 | . . . . 5 . . 5 . Destroy Leader 60 | . . 30 . 30 . . . . Successful Hack 46 | . 17 14 . 15 . . . . Disable Machine 60 | . . . . 60 . . . . Destroy Structure 67 | . . 5 . 62 . . . . Lose Combat Pursuer 135 | . . 30 . . . . 105 . Influence Decreases 618 | . 10 157 28 161 152 . 110 . Entered New Map 123 | . . 5 18 1 99 . . . Time Decay 352 | . 10 122 10 60 40 . 110 . Lost Part 130 | . . 20 . 100 10 . . . Lost Ally 13 | . . 10 . . 3 . . . Squads Dispatched 1 | . . 1 . . . . . . Investigation 1 | . . 1 . . . . . . Extermination . | . . . . . . . . . Reinforcement . | . . . . . . . . . Assault . | . . . . . . . . . Garrison . | . . . . . . . . . Intercept . | . . . . . . . . . Searches Triggered . | . . . . . . . . . Construction Impeded . | . . . . . . . . . Haulers Reinforced . | . . . . . . . . . Active Scanning Responses . | . . . . . . . . . Cargo Convoy Interrupts . | . . . . . . . . . Stealth | -11 -10 -9 -8 -7 -7 -7 -7 -7 --------- Run | Yrd Mat Mat Mat Fac Was Fac Low Low Distress Signals 2 | . . . . 2 . . . . Communications Jammed 1 | . . . . 1 . . . . Distress Signals 1 | . . . . 1 . . . . Times Spotted 43 | . . 9 1 15 6 3 5 4 Peak Tracking Total 9 | . . 3 1 9 6 3 3 4 Tactical Retreats 5 | . . 1 . . 1 . 3 . Traps | -11 -10 -9 -8 -7 -7 -7 -7 -7 ------- Run | Yrd Mat Mat Mat Fac Was Fac Low Low Traps Triggered 1 | . . . . 1 . . . . Indirectly . | . . . . . . . . . Trap Hack Attempts . | . . . . . . . . . Triggered . | . . . . . . . . . Disarmed . | . . . . . . . . . Reprogrammed . | . . . . . . . . . Reused . | . . . . . . . . . Traps Extracted . | . . . . . . . . . Installed . | . . . . . . . . . Triggered . | . . . . . . . . . Machines | -11 -10 -9 -8 -7 -7 -7 -7 -7 ---------- Run | Yrd Mat Mat Mat Fac Was Fac Low Low Machines Disabled 5 | . . . . 4 . . 1 . Max in Single Turn 2 | . . . . 2 . . 1 . Machines Repaired . | . . . . . . . . . Machines Dismantled 1 | . . . . . . . 1 . Machines Sabotaged . | . . . . . . . . . Overloaded Fab Kills . | . . . . . . . . . Hacking | -11 -10 -9 -8 -7 -7 -7 -7 -7 --------- Run | Yrd Mat Mat Mat Fac Was Fac Low Low Machines Accessed 17 | . 3 6 2 4 . . 2 . Terminals 7 | . 1 3 2 1 . . . . Fabricators 1 | . . . . 1 . . . . Repair Stations . | . . . . . . . . . Recycling Units 4 | . 2 1 . 1 . . . . Scanalyzers 3 | . . 2 . 1 . . . . Garrison Access . | . . . . . . . . . Total Hacks 40 | . 9 16 5 8 . . 2 . Successful 28 | . 6 11 2 7 . . 2 . Failed 12 | . 3 5 3 1 . . . . Catastrophic 1 | . . 1 . . . . . . Database Lockouts . | . . . . . . . . . Manual 14 | . . 7 4 3 . . . . Terminals 19 | . 4 8 5 2 . . . . Fabricators 1 | . . . . 1 . . . . Repair Stations . | . . . . . . . . . Recycling Units 11 | . 5 3 . 3 . . . . Scanalyzers 7 | . . 5 . 2 . . . . Garrison Access . | . . . . . . . . . Terminal Hacks 10 | . 3 2 2 1 . . 2 . Record 1 | . . . . . . . 1 . Robot Analysis 2 | . 2 . . . . . . . Open Door 1 | . . . . . . . 1 . Branch Access Points 1 | . 1 . . . . . . . Emergency Access Points 1 | . . . . 1 . . . . Locate Traps 3 | . . 1 2 . . . . . Zone Layout 1 | . . 1 . . . . . . Fabricator Hacks 1 | . . . . 1 . . . . Network Status 1 | . . . . 1 . . . . Repair Station Hacks . | . . . . . . . . . Recycling Unit Hacks 6 | . 3 2 . 1 . . . . Report Inventory 3 | . 2 . . 1 . . . . Retrieve Matter 1 | . . 1 . . . . . . Retrieve Components 2 | . 1 1 . . . . . . Scanalyzer 6 | . . 5 . 1 . . . . Insert Component 3 | . . 2 . 1 . . . . Analyze 3 | . . 3 . . . . . . Garrison Access Hacks . | . . . . . . . . . Unauthorized Hacks 4 | . . 2 . 2 . . . . Terminals 3 | . . 2 . 1 . . . . Assimilate 3 | . . 2 . 1 . . . . Fabricators . | . . . . . . . . . Repair Stations . | . . . . . . . . . Recycling Units 1 | . . . . 1 . . . . Reject 1 | . . . . 1 . . . . Scanalyzers . | . . . . . . . . . Garrison Access . | . . . . . . . . . Data Cores Recovered . | . . . . . . . . . Used . | . . . . . . . . . Hacking Detections 12 | . 2 5 2 3 . . . . Full Trace Events 1 | . . 1 . . . . . . Feedback Events . | . . . . . . . . . Feedback Blocked . | . . . . . . . . . Robot Schematics Acquired . | . . . . . . . . . Robots Built . | . . . . . . . . . Authchips . | . . . . . . . . . Time . | . . . . . . . . . Total Robot Build Rating . | . . . . . . . . . Part Schematics Acquired 2 | . . 2 . . . . . . Parts Built . | . . . . . . . . . Authchips . | . . . . . . . . . Time . | . . . . . . . . . Total Part Build Rating . | . . . . . . . . . Parts Repaired . | . . . . . . . . . Time . | . . . . . . . . . Parts Recycled . | . . . . . . . . . Recycled Matter . | . . . . . . . . . Retrieved Matter . | . . . . . . . . . Retrieved Components 7 | . 4 3 . . . . . . Parts Scanalyzed 3 | . . 2 . 1 . . . . Part Schematics Acquired 2 | . . 2 . . . . . . Parts Damaged 1 | . . . . 1 . . . . Bothacking | -11 -10 -9 -8 -7 -7 -7 -7 -7 ------------ Run | Yrd Mat Mat Mat Fac Was Fac Low Low Used RIF Installer . | . . . . . . . . . Robots Hacked . | . . . . . . . . . Non-combat . | . . . . . . . . . Combat . | . . . . . . . . . Robot Hacks Applied . | . . . . . . . . . Relay Couplers Released . | . . . . . . . . . Fabnet Peak Effective % . | . . . . . . . . . Robots Rewired . | . . . . . . . . . Allies Hacked . | . . . . . . . . . Hacks Repelled . | . . . . . . . . . Allies | -11 -10 -9 -8 -7 -7 -7 -7 -7 -------- Run | Yrd Mat Mat Mat Fac Was Fac Low Low Total Allies 2 | . . 1 . . 1 . . . Largest Group 1 | . . 1 . . 1 . . . Highest-Rated Group 31 | . . 10 . . 31 . . . Highest-Rated Ally 31 | . . 10 . . 31 . . . Total Orders . | . . . . . . . . . Ally Attacks 6 | . . . . . 6 . . . Total Damage 42 | . . . . . 42 . . . Kills . | . . . . . . . . . Allies Corrupted . | . . . . . . . . . Allies Melted . | . . . . . . . . . Intel | -11 -10 -9 -8 -7 -7 -7 -7 -7 ------- Run | Yrd Mat Mat Mat Fac Was Fac Low Low Active Infowar (turns) 1157 | . . 128 39 81 . . 909 . Optics 909 | . . . . . . . 909 . Seismic 208 | . . 128 39 41 . . . . Jamming 51 | . . . . 51 . . . . Robot Analysis Total 2 | . 2 . . . . . . . Derelict Logs Recovered 2 | . . . . . . . 2 . Drone Launches . | . . . . . . . . . Drone Recoveries . | . . . . . . . . . Exploration | -11 -10 -9 -8 -7 -7 -7 -7 -7 ------------- Run | Yrd Mat Mat Mat Fac Was Fac Low Low Turns Passed 2629 | 78 136 270 39 151 112 56 1650 137 Spaces Moved 2597 | 59 149 345 110 229 188 52 1376 89 Core 1147 | 7 . . . 5 188 52 877 18 Treads . | . . . . . . . . . Legs 296 | 52 76 . . 4 . . 93 71 Wheels . | . . . . . . . . . Hover . | . . . . . . . . . Flight 1154 | . 73 345 110 220 . . 406 . Fastest Speed 31 | 50 37 31 34 31 50 50 35 50 Average Speed 65 | 111 80 32 34 36 50 50 73 153 Slowest Speed 350 | 120 190 34 34 120 50 50 350 190 Overloaded Moves . | . . . . . . . . . Propulsion Burnouts . | . . . . . . . . . Robots Hopped 3 | . 1 1 . . . . 1 . Potential Cave-ins 3 | . . . . 3 . . . . Cave-ins Triggered . | . . . . . . . . . Exploration Rate (%) 32 | 4 32 31 17 8 79 2 98 18 Regions Visited 8 Branch Regions 2 Pre-discovered Areas . | . . . . . . . . . Known Exits Taken 1 | . . . . . . . 1 . Unknown Exits Taken 5 | 1 1 1 1 . . 1 . . Scrap Searched 3 | . . . . . . . 3 . Spaces Dug 2 | . . 2 . . . . . . Terrain Destroyed 86 | . . 4 . 82 . . . . Melee . | . . . . . . . . . Projectile 4 | . . 4 . . . . . . AOE 82 | . . . . 82 . . . . Terrain Rammed 1 | . . 1 . . . . . . Walls Destroyed . | . . . . . . . . . Machines Disabled . | . . . . . . . . . Actions | -11 -10 -9 -8 -7 -7 -7 -7 -7 --------- Run | Yrd Mat Mat Mat Fac Was Fac Low Low Total 3304 | 69 167 455 111 269 204 81 1857 91 Wait 485 | . . 55 . 4 9 28 389 . Move 2584 | 58 146 342 109 229 187 51 1373 89 Hop 3 | . 1 1 . . . . 1 . Pick Up 24 | 4 5 6 1 3 3 . 2 . Fast Attach 24 | 5 3 4 . 2 2 1 7 . Attach 14 | 1 1 5 . 4 1 . 2 . Detach 10 | . 5 3 . 2 . . . . Swap 11 | . . 7 . 3 1 . . . Drop 24 | 1 6 7 1 2 1 1 3 2 Fire 108 | . . 23 . 20 . . 65 . Melee 1 | . . 1 . . . . . . Ram 1 | . . 1 . . . . . . Kick . | . . . . . . . . . Crush . | . . . . . . . . . Escape Stasis . | . . . . . . . . . Rewire 5 | . . . . . . . 5 . Trap . | . . . . . . . . . Miscellaneous 10 | . . . . . . . 10 . Route ------- -11/Scrapyard -10/Materials (discovered 3 exits: *Mat / *Min x2) -9/Materials -8/Materials -7/Factory -7/Waste -7/Factory -7/Lower Caves -7/Lower Caves (discovered 1 exit: Zio) History --------- Turn | Location | Event 4 | -11/Scrapyard | Discovered new exit (range 16) 79 | -11/Scrapyard | Entered Materials 168 | -10/Materials | Discovered new exit (range 5) 190 | -10/Materials | Identified exit to Mines 197 | -10/Materials | Discovered new exit (range 15) 215 | -10/Materials | Entered another Materials area 215 | -9/Materials | Evolved 2 slots: Propulsion x2 465 | -9/Materials | Discovered new exit (range 8) 485 | -9/Materials | Entered another Materials area 485 | -8/Materials | Evolved 2 slots: Power x1, Utility x1 516 | -8/Materials | Discovered new exit (range 16) 524 | -8/Materials | Entered Factory 524 | -7/Factory | Evolved 2 slots: Propulsion x1, Utility x1 636 | -7/Factory | Lost 6 parts (1p3n1u1w) 675 | -7/Factory | Sucked down chute 675 | -7/Factory | Entered Waste 676 | -7/Waste | Met a frightened Derelict 687 | -7/Waste | Spotted C-40 Crusher 690 | -7/Waste | EMP discharged 690 | -7/Waste | System corruption reached 10% 694 | -7/Waste | Spotted C-40 Crusher 697 | -7/Waste | Lost 4 parts (2n2w) 698 | -7/Waste | Spotted C-40 Crusher 706 | -7/Waste | Spotted C-40 Crusher 711 | -7/Waste | Crushed by Compactor (1 part destroyed, 1 dropped) 715 | -7/Waste | Spotted C-40 Crusher 729 | -7/Waste | Spotted C-40 Crusher 783 | -7/Waste | Discovered new exit (range 10) 787 | -7/Waste | Entered Factory 802 | -7/Factory | Discovered new exit (range 15) 803 | -7/Factory | Core integrity fell below 50% 843 | -7/Factory | Entered Lower Caves 887 | -7/Lower Caves | Build established: Mutant 1305 | -7/Lower Caves | Entered a destroyed Warlord outpost 1461 | -7/Lower Caves | Identified exit to Lower Caves 1472 | -7/Lower Caves | Learned location of 1 exit from Lower Caves 1480 | -7/Lower Caves | Encountered a Warlord checkpoint 1505 | -7/Lower Caves | Found Prototype Device 1505 | -7/Lower Caves | Identified Heart of Steel 1933 | -7/Lower Caves | Murdered Warlord Statue 2110 | -7/Lower Caves | Attracted the attention of an 0b10 checkpoint 2493 | -7/Lower Caves | Entered another Lower Caves area 2494 | -7/Lower Caves | Identified exit to Zion 2613 | -7/Lower Caves | Core integrity fell below 20% 2630 | -7/Lower Caves | Destroyed by S-27 Virus with Autogun Last Messages --------------- 02525_ V4-IJ8(k) breaks down the debris. 02526_ 6M-OEX(k) breaks down the debris. 02530_ 9F-MG2(k) breaks down the debris. 02531_ HP-3LN(k) breaks down the debris. 02541_ ED2UZ49 L:FT0DL6QWGCTS GCT8HRGLRVU|O 02558_ 6M-OEX(k) breaks down the debris. 02562_ HP-3LN(k) breaks down the debris. 02570_ HW-WUH(k) breaks down the debris. 02572_ System corrupted: Energy discharge (-55). 02573_ V4-IJ8(k) breaks down the debris. 02573_ 6M-OEX(k) breaks down the debris. 02577_ 9F-MG2(k) breaks down the debris. 02582_ HP-3LN(k) breaks down the debris. 02587_ V9FV%B#X1,Y13WBS0L|B W%LGVII 02587_ HW-WUH(k) breaks down the debris. 02595_ 9F-MG2(k) breaks down the debris. 02607_ Discarded Heart of Steel. 02611_ 9F-MG2(k) destroyed. 02619_ Lgt. Angular Momentum Engine destroyed. 02621_ Dropped Carbon-fiber Leg. Map ----- +----------------------------------------------------+ | ?????????????????????????????????????????# | | ?????????????????????????????????????????# | | ?????????????????????????????????????????## ### | | ??????????????????????????????????????????##???# | | ??????????????????????????????????????????????## | | ??????????????????????????????????????????????# | | ??????????????????????????????????????????????# | | ??????????????????????????????????????????????# | | ??????????????????????????????????????????????# | | ??????????????????????????????????????????????# | | ??????????????????????????????????????????????#### | | ?????????????????????????????????????????????????? | | ?????????????????????????????????????? ??#?###### | | ?????????????????????????????????????? ## # | | ??????????????????????????????????????? | | ???????????????????????????????????????? # | | ??????????????????????????????????????? " " "" # | | ????????????????????????????????####### " """ # | | ??????????????????????????????### "" "" # | | ?????????????????????????????## $ " # | | ????????????????????????????## s #?# """"$ %# | | ????????????????????????????# ss #?# """"" | | ?????????????????????????#### ## #?# "" | | ????????????????????????## s### #??# | | ???????????????????????## #?# #??### | | ???????????????????????# @ #?# #?####### # | | ???????????????????????## ##?# ### ### # | | ????????????????????????## ###??# = # | | ?????????????????????????# ##???# | | ?????????????????????????####????# ##### | | ?????????????????????????????????# ##???## | | ?????????????????????????????????# ####?????#### | | ?????????????????????????????????##????????????## | | ?????????????????????????????????????????????????# | | ?????????????????????????????????????????????????? | | ?????????????????????????????????????????????????? | | ?????????????????????????????????????????????????? | | ?????????????????????????????????????????????????? | | ?????????????????????????????????????????????????? | | ?????????????????????????????????????????????????? | | ?????????????????????????????????????????????????? | | ?????????????????????????????????????????????????? | | ?????????????????????????????????????????????????? | | ?????????????????????????????????????????????????? | | ?????????????????????????????????????????????????? | | ?????????????????????????????????????????????????? | | ?????????????????????????????????????????????????? | | ?????????????????????????????????????????????????? | | ?????????????????????????????????????????????????? | | ?????????????????????????????????????????????????? | +----------------------------------------------------+ Best States ------------- Heat Dissipation 44 Energy Generation 18 Energy Capacity 265 Matter Stores 300 Matter Capacity 300 Sight Range 20 Terrain Scan Density 85 Jamming Range 12 Evasion (%) 63 Authchip Count 1 Item Schematics ----------------- Mining Laser | -9/Materials | Scanalyzed Mni. Grenade Launcher | -9/Materials | Scanalyzed Robot Schematics ------------------ None Fabricated ------------ Nothing Repaired ---------- Nothing Alien Tech Used ----------------- None Achievements -------------- None Challenges ------------ None Game ------ Seed DisposableLargeSpecial Manual? 0 Play Time 01:17:24 Cumulative 45.8 hours Start 2025.06.05 @ 02:36:14 End 2025.06.05 @ 05:24:38 Sessions 1 Manual Loads 0 Difficulty Rogue Special Mode None Game No. 44 Rogue 44 Adventurer 0 Explorer 0 Win Type - Total 0 Types 0/0/0/0/0/0/0/0/0/0 Lore% 25 Gallery% 30 Achievement% 28 Wizard Run 0 Options --------- Layout 1 ASCII 1 Keyboard 0 Movement Numpad Keybinds 0 Fullscreen 1 Font 24/Smallcaps Map View 50x35 Zoom Use 0% Tactical HUD 1 Map Filters NONE Filters NONE Steam 1 RUN: ee7636df-916e-4f34-9bc0-8538a1a28528